Cogmind - Beta 12 @@@ ROGUE MODE // 2023.05.26 @ 11:16:00 Player: Mr Goldstein Result: Self-destructed Performance ------------- Evolutions (4) 2000 Regions Visited (8) 1600 Robots Destroyed (8) 40 Value Destroyed (138) 138 Prototype IDs (0) 0 Alien Tech Used (0) 0 Bonus (535) 535 TOTAL SCORE: 4313 Bonus ------- Follower Combat Kills 35 Entered DSFs 500 Cogmind --------- Core Integrity 514/850 Matter 292/300 Energy 100/100 System Corruption 6% Temperature Cool (0) Movement Flying (40) Location -6/Factory Parts ------- > --- POWER (1) -------- (None) > --- PROPULSION (6) --- Xenon Bombardment Thruster > --- UTILITY (4) ------ System Shield > --- WEAPON (4) ------- (None) > --- INVENTORY (5) ---- Nuclear Core Improved Signal Interpreter Heavy Missile Launcher Remote Datajack Spear Peak State ------------ > --- POWER ------------ Nuclear Core > --- PROPULSION ------- VTOL Module VTOL Module Xenon Bombardment Thruster Xenon Bombardment Thruster > --- UTILITY ---------- Improved System Shield > --- WEAPON ----------- Spear > --- INVENTORY -------- Improved Signal Interpreter Rocket Launcher Remote Datajack [Rating: 24] Favorites ----------- Power Nuclear Core Power Core Nuclear Core Propulsion Xenon Bombardment Thruster Flight Unit Xenon Bombardment Thruster Utility Core Shielding Hackware System Shield Protection Core Shielding Weapon Spear Launcher Rocket Launcher Piercing Weapon Spear Build | -11 -10 -10 -10 -9 -8 -7 -7 -6 ------- Run | Jun Mat Min Exi Min Mat Fac DSF Fac Slots Evolved 8 | . . . . . 4 2 . 2 Power . | . . . . . . . . . Propulsion 4 | . . . . . 2 1 . 1 Utility 2 | . . . . . 2 . . . Weapon 2 | . . . . . . 1 . 1 Parts Attached 16 | . 1 . . 1 . 2 4 8 Power 1 | . . . . . . . . 1 Engine . | . . . . . . . . . Core 1 | . . . . . . . . 1 Reactor . | . . . . . . . . . Propulsion 7 | . . . . . . 1 4 2 Treads . | . . . . . . . . . Leg . | . . . . . . . . . Wheel . | . . . . . . . . . Hover . | . . . . . . . . . Flight 7 | . . . . . . 1 4 2 Utility 4 | . 1 . . . . 1 . 2 Device . | . . . . . . . . . Storage . | . . . . . . . . . Processor . | . . . . . . . . . Hackware 2 | . . . . . . . . 2 Protection 2 | . 1 . . . . 1 . . Artifact . | . . . . . . . . . Weapon 4 | . . . . 1 . . . 3 Energy Gun . | . . . . . . . . . Energy Cannon . | . . . . . . . . . Ballistic Gun . | . . . . . . . . . Ballistic Cannon . | . . . . . . . . . Launcher 2 | . . . . 1 . . . 1 Special Weapon . | . . . . . . . . . Impact Weapon . | . . . . . . . . . Slashing Weapon . | . . . . . . . . . Piercing Weapon 2 | . . . . . . . . 2 Special Melee Weapon . | . . . . . . . . . Unidentified Prototypes . | . . . . . . . . . Parts Lost 8 | . . . . . . . 2 6 Power . | . . . . . . . . . Propulsion 6 | . . . . . . . 2 4 Utility 2 | . . . . . . . . 2 Weapon . | . . . . . . . . . Highest Loss Streak 6 | . . . . . . . 2 6 To Critical Strikes . | . . . . . . . . . Average Slot Usage (%) 16 | . 6 14 14 14 9 18 22 22 Flight 5 | . . . . . . 6 12 12 Protection 8 | . 6 14 14 14 9 10 9 1 Naked Turns 39 | . 39 . . . . . . . Heaviest Build 14 | . 1 1 1 1 1 4 4 14 Greatest Support 24 | 3 3 3 3 3 3 5 24 20 Greatest Overweight (x) 1 | . . . . . . . 1 . Average Overweight (x) . | . . . . . . . . . Largest Inventory Capacity 5 | 5 5 5 5 5 5 5 5 5 Average Capacity 5 | 5 5 5 5 5 5 5 5 5 Most Carried 5 | . . 1 1 1 2 5 5 5 Average Carried 2 | . . . 1 . 1 3 5 4 Final Capacity 5 | 5 5 5 5 5 5 5 5 5 Final Carried 5 | . . 1 1 1 2 5 5 5 Class Distribution -------------------- 91% | Mutant 8% | Sprinter Dominant Class ---------------- Mutant | -10/Materials Mutant | -10/Mines Mutant | -10/Exiles Mutant | -9/Mines Mutant | -8/Materials Mutant | -7/Factory Mutant | -7/DSF Mutant | -6/Factory Resources | -11 -10 -10 -10 -9 -8 -7 -7 -6 ----------- Run | Jun Mat Min Exi Min Mat Fac DSF Fac Matter Collected 383 | 160 . 39 . 17 . . . 167 Remotely . | . . . . . . . . . Salvage Created 73 | . . . . 37 . . . 36 Parts 12 | . . . . 6 . . . 6 Haulers Intercepted . | . . . . . . . . . Recyclers Shooed . | . . . . . . . . . Parts Field Recycled . | . . . . . . . . . Retrieved Matter . | . . . . . . . . . Parts Self-Destructed . | . . . . . . . . . Prevented . | . . . . . . . . . Kills | -11 -10 -10 -10 -9 -8 -7 -7 -6 ------- Run | Jun Mat Min Exi Min Mat Fac DSF Fac Combat Hostiles Destroyed 7 | . . . . 4 . . . 3 AOE 7 | . . . . 4 . . . 3 Classes Destroyed 2 | . . . . 1 . . . 1 Tunneler 1 | . . . . . . . . 1 Swarmer 7 | . . . . 4 . . . 3 Best Kill Streak 4 | . . . . 4 . . . 4 Combat Bots Only 4 | . . . . 4 . . . 3 Max Kills in Single Turn 4 | . . . . 4 . . . 2 Gunslinging . | . . . . . . . . . Exploded 4 | . . . . 4 . . . 2 Melee . | . . . . . . . . . Uniques/NPCs Destroyed . | . . . . . . . . . Combat | -11 -10 -10 -10 -9 -8 -7 -7 -6 -------- Run | Jun Mat Min Exi Min Mat Fac DSF Fac Damage Taken 1124 | . 53 44 . 50 75 . 195 707 Core 596 | . 49 36 . 44 63 . 68 336 Absorbed by Shields . | . . . . . . . . . Redirected to Shielding 42 | . 4 8 . 6 12 . 12 . Core Remaining (%) 81 | 100 . . . 48 88 . 90 . Volleys Fired 6 | . . . . 1 . . . 5 Largest 1 | . . . . 1 . . . 1 Hottest 33 | . . . . 33 . . . 33 Shots Fired 6 | . . . . 1 . . . 5 Gun . | . . . . . . . . . Cannon . | . . . . . . . . . Launcher 6 | . . . . 1 . . . 5 Special . | . . . . . . . . . Kinetic . | . . . . . . . . . Thermal . | . . . . . . . . . Explosive 6 | . . . . 1 . . . 5 Electromagnetic . | . . . . . . . . . Robot Hit Streak . | . . . . . . . . . Robot Miss Streak . | . . . . . . . . . Penetration Max . | . . . . . . . . . Secondary Targets . | . . . . . . . . . Shots Hit Robots . | . . . . . . . . . Core Hits 11 | . . . . 5 . . . 6 Critical Kills . | . . . . . . . . . Critical Parts Destroyed . | . . . . . . . . . Critical Strikes . | . . . . . . . . . Melee Attacks 9 | . . . . . . . . 9 Impact . | . . . . . . . . . Slashing . | . . . . . . . . . Piercing 9 | . . . . . . . . 9 Sneak Attacks . | . . . . . . . . . Combat Hostiles . | . . . . . . . . . Follow-up Attacks . | . . . . . . . . . Damage Inflicted 606 | . 8 . . 243 . . . 355 Guns . | . . . . . . . . . Cannons . | . . . . . . . . . Explosions 598 | . . . . 243 . . . 355 Melee . | . . . . . . . . . Ramming 8 | . 8 . . . . . . . Kinetic . | . . . . . . . . . Thermal . | . . . . . . . . . Explosive 598 | . . . . 243 . . . 355 Electromagnetic . | . . . . . . . . . Impact . | . . . . . . . . . Slashing . | . . . . . . . . . Piercing . | . . . . . . . . . Highest Corruption 6 | . . . . . . . . 6 Average Corruption 5 | . . . . . . . . 5 Corruption Purged . | . . . . . . . . . Corruption Blocked . | . . . . . . . . . Effects 5 | . . . . . . . . 5 Message Errors 1 | . . . . . . . . 1 Matter Fused 2 | . . . . . . . . 2 Heat Flow Errors 1 | . . . . . . . . 1 Energy Discharges 1 | . . . . . . . . 1 Overload Shots . | . . . . . . . . . Overflow Damage 3 | . . . . . . . . 3 Projectiles . | . . . . . . . . . Explosions 3 | . . . . . . . . 3 Melee . | . . . . . . . . . Knockbacks . | . . . . . . . . . Impact . | . . . . . . . . . Kinetic . | . . . . . . . . . Secondary . | . . . . . . . . . Self-Inflicted Damage 53 | . 3 . . 11 . . . 39 Shots 2 | . . . . 1 . . . 1 Rammed 2 | . 2 . . . . . . . Targets Rammed 2 | . 2 . . . . . . . Kicked . | . . . . . . . . . Crushed . | . . . . . . . . . Highest Temperature 87 | . . . . . . . . 87 Average Temperature 54 | . . . . . . . . 54 Received Heat Transfer 141 | . 27 27 . 12 36 . . 39 Siege Activations . | . . . . . . . . . Robots Corrupted . | . . . . . . . . . Combat Hostiles . | . . . . . . . . . Parts Fried . | . . . . . . . . . Impact Corruptions . | . . . . . . . . . Robots Melted . | . . . . . . . . . Combat Hostiles . | . . . . . . . . . Parts Melted . | . . . . . . . . . Heat Transferred . | . . . . . . . . . Parts Sabotaged . | . . . . . . . . . Parts Stolen . | . . . . . . . . . Parts Stripped . | . . . . . . . . . Power Chain Reactions . | . . . . . . . . . Missiles Intercepted . | . . . . . . . . . Alert | -11 -10 -10 -10 -9 -8 -7 -7 -6 ------- Run | Jun Mat Min Exi Min Mat Fac DSF Fac Peak Influence 300 | . 45 94 . 100 75 75 52 300 Initial 52 | . . 17 . . 39 33 52 24 Average 78 | . 25 49 . 88 56 58 45 144 Maximum Alert Level 1 | . . . . . . . . 1 Low Security (%) 92 | 100 100 100 . 100 100 100 100 76 Level 1 7 | . . . . . . . . 23 Level 2 . | . . . . . . . . . Level 3 . | . . . . . . . . . Level 4 . | . . . . . . . . . Level 5 . | . . . . . . . . . High Security . | . . . . . . . . . Max Security . | . . . . . . . . . Squads Dispatched 5 | . 1 . . . 1 2 . 1 Investigation 5 | . 1 . . . 1 2 . 1 Extermination . | . . . . . . . . . Reinforcement . | . . . . . . . . . Assault . | . . . . . . . . . Garrison . | . . . . . . . . . Intercept . | . . . . . . . . . Searches Triggered . | . . . . . . . . . Construction Impeded . | . . . . . . . . . Haulers Reinforced . | . . . . . . . . . Active Scanning Responses . | . . . . . . . . . Cargo Convoy Interrupts . | . . . . . . . . . Stealth | -11 -10 -10 -10 -9 -8 -7 -7 -6 --------- Run | Jun Mat Min Exi Min Mat Fac DSF Fac Distress Signals 2 | . 1 . . . . . . 1 Communications Jammed . | . . . . . . . . . Distress Signals . | . . . . . . . . . Times Spotted 43 | . 8 6 . 6 8 . 2 13 Peak Tracking Total 10 | . 8 3 . 6 7 . 3 10 Tactical Retreats 7 | . 1 1 . . 1 . 1 3 Traps | -11 -10 -10 -10 -9 -8 -7 -7 -6 ------- Run | Jun Mat Min Exi Min Mat Fac DSF Fac Traps Triggered 2 | . 1 . . . . . 1 . Indirectly . | . . . . . . . . . Trap Hack Attempts . | . . . . . . . . . Triggered . | . . . . . . . . . Disarmed . | . . . . . . . . . Reprogrammed . | . . . . . . . . . Reused . | . . . . . . . . . Traps Extracted . | . . . . . . . . . Installed . | . . . . . . . . . Triggered . | . . . . . . . . . Machines | -11 -10 -10 -10 -9 -8 -7 -7 -6 ---------- Run | Jun Mat Min Exi Min Mat Fac DSF Fac Machines Disabled 1 | . . . . . . . . 1 Max in Single Turn 1 | . . . . . . . . 1 Machines Repaired . | . . . . . . . . . Machines Sabotaged . | . . . . . . . . . Overloaded Fab Kills . | . . . . . . . . . Hacking | -11 -10 -10 -10 -9 -8 -7 -7 -6 --------- Run | Jun Mat Min Exi Min Mat Fac DSF Fac Machines Accessed 9 | . . . 1 . 1 4 . 3 Terminals 8 | . . . . . 1 4 . 3 Fabricators . | . . . . . . . . . Repair Stations . | . . . . . . . . . Recycling Units . | . . . . . . . . . Scanalyzers . | . . . . . . . . . Garrison Access . | . . . . . . . . . Total Hacks 23 | . . . 1 . 3 10 . 9 Successful 7 | . . . 1 . 1 3 . 2 Failed 16 | . . . . . 2 7 . 7 Catastrophic 1 | . . . . . . 1 . . Database Lockouts . | . . . . . . . . . Manual 14 | . . . . . 3 2 . 9 Terminals 22 | . . . . . 3 10 . 9 Fabricators . | . . . . . . . . . Repair Stations . | . . . . . . . . . Recycling Units . | . . . . . . . . . Scanalyzers . | . . . . . . . . . Garrison Access . | . . . . . . . . . Terminal Hacks 5 | . . . 1 . . 3 . 1 Record 1 | . . . 1 . . . . . Robot Analysis 1 | . . . . . . 1 . . Open DSF 1 | . . . . . . 1 . . Branch Access Points 1 | . . . . . . . . 1 Terminal Index 1 | . . . . . . 1 . . Fabricator Hacks . | . . . . . . . . . Repair Station Hacks . | . . . . . . . . . Recycling Unit Hacks . | . . . . . . . . . Scanalyzer . | . . . . . . . . . Garrison Access Hacks . | . . . . . . . . . Unauthorized Hacks 2 | . . . . . 1 . . 1 Terminals 2 | . . . . . 1 . . 1 Assimilate 1 | . . . . . 1 . . . Botnet 1 | . . . . . . . . 1 Fabricators . | . . . . . . . . . Repair Stations . | . . . . . . . . . Recycling Units . | . . . . . . . . . Scanalyzers . | . . . . . . . . . Garrison Access . | . . . . . . . . . Data Cores Recovered . | . . . . . . . . . Used . | . . . . . . . . . Hacking Detections 6 | . . . . . 1 3 . 2 Full Trace Events 4 | . . . . . 1 2 . 1 Feedback Events . | . . . . . . . . . Feedback Blocked . | . . . . . . . . . Robot Schematics Acquired . | . . . . . . . . . Robots Built . | . . . . . . . . . Authchips . | . . . . . . . . . Time . | . . . . . . . . . Total Robot Build Rating . | . . . . . . . . . Part Schematics Acquired . | . . . . . . . . . Parts Built . | . . . . . . . . . Authchips . | . . . . . . . . . Time . | . . . . . . . . . Total Part Build Rating . | . . . . . . . . . Parts Repaired . | . . . . . . . . . Time . | . . . . . . . . . Parts Recycled . | . . . . . . . . . Recycled Matter . | . . . . . . . . . Retrieved Matter . | . . . . . . . . . Retrieved Components . | . . . . . . . . . Parts Scanalyzed . | . . . . . . . . . Part Schematics Acquired . | . . . . . . . . . Parts Damaged . | . . . . . . . . . Bothacking | -11 -10 -10 -10 -9 -8 -7 -7 -6 ------------ Run | Jun Mat Min Exi Min Mat Fac DSF Fac Used RIF Installer . | . . . . . . . . . Robots Hacked . | . . . . . . . . . Non-combat . | . . . . . . . . . Combat . | . . . . . . . . . Robot Hacks Applied . | . . . . . . . . . Relay Couplers Released . | . . . . . . . . . Fabnet Peak Effective % . | . . . . . . . . . Robots Rewired . | . . . . . . . . . Allies Hacked . | . . . . . . . . . Hacks Repelled . | . . . . . . . . . Allies | -11 -10 -10 -10 -9 -8 -7 -7 -6 -------- Run | Jun Mat Min Exi Min Mat Fac DSF Fac Total Allies 1 | . . 1 . . . . . . Largest Group 1 | . . 1 . . . . . . Highest-Rated Group 31 | . . 31 . . . . . . Highest-Rated Ally 31 | . . 31 . . . . . . Total Orders . | . . . . . . . . . Ally Attacks 8 | . . 8 . . . . . . Total Damage 169 | . . 169 . . . . . . Kills 1 | . . 1 . . . . . . Allies Corrupted . | . . . . . . . . . Allies Melted . | . . . . . . . . . Intel | -11 -10 -10 -10 -9 -8 -7 -7 -6 ------- Run | Jun Mat Min Exi Min Mat Fac DSF Fac Robot Analysis Total 1 | . . . . . . 1 . . Derelict Logs Recovered . | . . . . . . . . . Drone Launches . | . . . . . . . . . Drone Recoveries . | . . . . . . . . . Exploration | -11 -10 -10 -10 -9 -8 -7 -7 -6 ------------- Run | Jun Mat Min Exi Min Mat Fac DSF Fac Turns Passed 739 | 12 74 102 63 9 78 168 24 209 Spaces Moved 1576 | 24 141 185 126 10 153 455 41 441 Core 668 | 24 141 185 126 10 153 14 15 . Treads . | . . . . . . . . . Legs . | . . . . . . . . . Wheels . | . . . . . . . . . Hover . | . . . . . . . . . Flight 908 | . . . . . . 441 26 441 Fastest Speed 28 | 50 50 50 50 50 50 35 31 28 Average Speed 41 | 50 50 50 50 50 50 35 41 36 Slowest Speed 100 | 50 50 50 50 50 50 50 100 40 Overloaded Moves . | . . . . . . . . . Propulsion Burnouts . | . . . . . . . . . Robots Hopped 7 | . . . . . . 1 . 6 Cave-ins Triggered 2 | . . . . . . . . 2 Exploration Rate (%) 24 | 3 41 30 48 8 24 13 43 12 Regions Visited 8 Branch Regions 3 Pre-discovered Areas 1 | . . . 1 . . . . . Known Exits Taken 1 | . . . . . . 1 . . Unknown Exits Taken 6 | 1 1 1 1 1 1 . . . Scrap Searched . | . . . . . . . . . Spaces Dug 30 | . . . . 11 . . . 19 Terrain Destroyed 71 | . . . . 11 . . . 60 Melee 8 | . . . . . . . . 8 Projectile . | . . . . . . . . . AOE 63 | . . . . 11 . . . 52 Terrain Rammed . | . . . . . . . . . Walls Destroyed . | . . . . . . . . . Machines Disabled . | . . . . . . . . . Actions | -11 -10 -10 -10 -9 -8 -7 -7 -6 --------- Run | Jun Mat Min Exi Min Mat Fac DSF Fac Total 1617 | 23 143 193 125 12 153 458 45 465 Wait 8 | . . 8 . . . . . . Move 1553 | 23 140 184 125 9 152 452 40 428 Hop 6 | . . . . . . 1 . 5 Pick Up 8 | . . 1 . . 1 3 . 3 Fast Attach 9 | . 1 . . . . 2 4 2 Attach 7 | . . . . 1 . . . 6 Detach 5 | . . . . 1 . . . 4 Swap . | . . . . . . . . . Drop 2 | . . . . . . . 1 1 Fire 6 | . . . . 1 . . . 5 Melee 9 | . . . . . . . . 9 Ram 2 | . 2 . . . . . . . Kick . | . . . . . . . . . Crush . | . . . . . . . . . Escape Stasis 2 | . . . . . . . . 2 Rewire . | . . . . . . . . . Trap . | . . . . . . . . . Miscellaneous . | . . . . . . . . . Route ------- -11/Junkyard -10/Materials -10/Mines (discovered 2 exits: [*Mat] / *Exi) -10/Exiles -9/Mines -8/Materials -7/Factory -7/DSF -6/Factory (discovered 4 exits: Low x2 / Ext x2) History --------- Turn | Location | Event 2 | -11/Junkyard | Met Revision 17 4 | -11/Junkyard | Discovered new exit (range 15) 13 | -11/Junkyard | Entered Materials 80 | -10/Materials | Discovered new exit (range 13) 87 | -10/Materials | Entered Mines 95 | -10/Mines | Received a Rocket Launcher from a helpful Derelict 127 | -10/Mines | Received a Mining Laser from a helpful Derelict 131 | -10/Mines | Discovered new exit (range 3) 142 | -10/Mines | Joined a pair of Derelicts in attacking an 0b10 outpost 187 | -10/Mines | Deemed a non-threat by the Exiles lab entrance 187 | -10/Mines | Discovered new exit (range 5) 189 | -10/Mines | Entered Exiles 202 | -10/Exiles | Met 8R-AWN 210 | -10/Exiles | Met EX-HEX 230 | -10/Exiles | Met EX-DEC 232 | -10/Exiles | Learned location of Zion (-7) 248 | -10/Exiles | Discovered new exit (range 10) 252 | -10/Exiles | Entered Mines 259 | -9/Mines | Discovered new exit (range 4) 261 | -9/Mines | Core integrity fell below 50% 261 | -9/Mines | Entered Materials 261 | -8/Materials | Evolved 4 slots: Propulsion x2, Utility x2 314 | -8/Materials | Build established: Mutant 335 | -8/Materials | Discovered new exit (range 9) 339 | -8/Materials | Entered Factory 339 | -7/Factory | Evolved 2 slots: Propulsion x1, Weapon x1 506 | -7/Factory | Identified exit to DSF 507 | -7/Factory | Entered DSF 514 | -7/DSF | Discovered new exit (range 11) 522 | -7/DSF | Additional patrols routed to DSF 531 | -7/DSF | Entered Factory 531 | -6/Factory | Evolved 2 slots: Propulsion x1, Weapon x1 611 | -6/Factory | Crushed by falling debris 616 | -6/Factory | Crushed by falling debris 657 | -6/Factory | Lost 6 parts (4n2u) 727 | -6/Factory | Identified exit to Lower Caves 727 | -6/Factory | Identified exit to Extension 740 | -6/Factory | Self-destructed Last Messages --------------- Terminal linked with 0 systems. Awaiting botnet instructions. 00671_ Dropped Rocket Launcher. 00671_ Acquired Hvy. Missile Launcher. 00674_ Acquired System Shield. 00687_ 1B KFDWFTPWM4G>Access(Branch) Found 4 branch access points: (96,166) Lower Caves (186,30) Lower Caves (143,19) Extension (24,124) Extension Map updated. 00737_ System corrupted: Matter fused (-8). 00737_ K-01 Serf cleans the Fusion Modulator. Map ----- +----------------------------------------------------+ | ????????????????????????????????????????? | | ????????????????????????????????????????? | | ????????????????????????????????????????? | | ????????????????????????????????????????? | | ????????????????????????????????????????? | | ????????????????????????????????????????? | | ????????????????????????????????????????? | | ????????????????????????????????????????? | | ????????????????????????????????????????? | | ????????????????????????????????????????? | | ????????????????????????????????????????? | | ???????????????????#???#??? ???????????? | | ??????????????????? ??? ??? ???????????? | | ??????????????????? ??? ??? ???????????? | | ??????????????????" "?" "?" #??????????? | | ??????????????????" "?" "?" #??????????? | | ??????????????" ??" "?" "?" #??????????? | | ?????????????? ?? ? ? #??????????? | | ?????????# """ """ """ """ #??????????? | | ?????????# """ """ """ """ #??????????? | | ?????????? """ """ """ """ #??????????? | | ?????????# +??????????? | | ?????????# """ """ """ """ #??????????? | | ?????????+ """ """ """ """ #??????????? | | ?????????# """ """ """ """ #??????????? | | ?????????# @ #??????????? | | ?????????# """ """ #??????????? | | ?????????# ""T"" """ """ #??????????? | | ?????????+ """"" """ """ #??????????? | | ?????????# #??????????? | | ?????????# #??????????? | | ?????????############### #??????????? | | ??????????# # #??????????? | | ??????????#" [ # #??????????? | | ??????????#T / +??????????? | | ??????????#" # #??????????? | | ??????????# %] # #??????????? | | ??????????# ]! # #??????????? | | ??????????# """" ]! # #??????????? | | ??????????# """" # #??????????? | | ??????????# """" # #??????????? | | ??????????# """" # #??????????? | | ??????????# # #??????????? | | ??????????# # #??????????? | | ??????????############## #??????????? | | ????????????????????######+#+#####??????? | | ????????????????????# #??????? | | ????????????????????# #??????? | | ????????????????????# #??????? | | ????????????????????# #??????? | +----------------------------------------------------+ Best States ------------- Heat Dissipation 37 Energy Generation 14 Energy Capacity 240 Matter Stores 300 Matter Capacity 300 Sight Range 16 Terrain Scan Density 10 Armor Coverage 150 Core Shielding 20 Evasion (%) 64 Defensive Hacking 12 Item Schematics ----------------- None Robot Schematics ------------------ None Fabricated ------------ Nothing Alien Tech Used ----------------- None Achievements -------------- None Challenges ------------ None Game ------ Seed ZioniteHeavyNetwork Manual? 0 Play Time 00:12:50 Cumulative 240.4 hours Start 2023.05.26 @ 11:06:21 End 2023.05.26 @ 11:16:00 Sessions 1 Manual Loads 0 Difficulty Rogue Special Mode None Game No. 724 Rogue 724 Adventurer 0 Explorer 0 Win Type - Total 11 Types 8/0/1/2/0/0/0/0/0 Lore% 86 Gallery% 82 Achievement% 73 Wizard Run 0 Options --------- ASCII 0 Keyboard 0 Movement Numpad Keybinds 0 Fullscreen 1 Font 16/SmallcapsGlow Map View 75x55 Tactical HUD 1 Map Filters NONE Filters NONE Steam 1 RUN: d792a66d-3d7b-499a-ad95-52272dc11fb8